[Event "Titled Tuesday Blitz June 28 Early 2022"]
[White "Richter, Nils"]
[Black "Sanchez, Robert"]
[WhiteFideId "12990809"]
[BlackFideId "2034360"]
[WhiteElo "2311"]
[BlackElo "2015"]
[Result "0-1"]
[Round "01"]
[TimeControl "180+1"]
[Date "2022.06.28"]
[WhiteClock "0:01:37"]
[BlackClock "0:01:14"]

1. Nf3 {[%clk 0:02:59]}  d5 {[%clk 0:02:57]} 2. g3 {[%clk 0:02:59]}  e6 {[%clk 0:02:58]} 3. Bg2 {[%clk 0:02:59]}  Be7 {[%clk 0:02:58]} 4. O-O {[%clk 0:02:59]}  Nf6 {[%clk 0:02:59]} 5. c4 {[%clk 0:02:59]}  O-O {[%clk 0:02:59]} 6. b3 {[%clk 0:02:59]}  c6 {[%clk 0:03:00]} 7. Bb2 {[%clk 0:02:58]}  Nbd7 {[%clk 0:03:00]} 8. d3 {[%clk 0:02:58]}  b6 {[%clk 0:03:01]} 9. Nbd2 {[%clk 0:02:57]}  Bb7 {[%clk 0:03:01]} 10. e4 {[%clk 0:02:57]}  h6 {[%clk 0:02:52]} 11. e5 {[%clk 0:02:51]}  Nh7 {[%clk 0:02:50]} 12. h4 {[%clk 0:02:50]}  Nc5 {[%clk 0:02:46]} 13. Qe2 {[%clk 0:02:45]}  Re8 {[%clk 0:02:29]} 14. d4 {[%clk 0:02:42]}  Nd7 {[%clk 0:02:28]} 15. Rfe1 {[%clk 0:02:37]}  Bf8 {[%clk 0:02:15]} 16. Nf1 {[%clk 0:02:36]}  g6 {[%clk 0:02:15]} 17. N1h2 {[%clk 0:02:35]}  Bg7 {[%clk 0:02:14]} 18. Ng4 {[%clk 0:02:33]}  h5 {[%clk 0:02:13]} 19. Ne3 {[%clk 0:02:32]}  c5 {[%clk 0:02:05]} 20. cxd5 {[%clk 0:02:27]}  exd5 {[%clk 0:02:03]} 21. Rad1 {[%clk 0:01:55]}  cxd4 {[%clk 0:01:46]} 22. Bxd4 {[%clk 0:01:54]}  Nxe5 {[%clk 0:01:39]} 23. Nxe5 {[%clk 0:01:54]}  Bxe5 {[%clk 0:01:39]} 24. Qb2 {[%clk 0:01:54]}  Qf6 {[%clk 0:01:25]} 25. Bxe5 {[%clk 0:01:50]}  Rxe5 {[%clk 0:01:19]} 26. Nxd5 {[%clk 0:01:47]}  Rxe1+ {[%clk 0:01:19]} 27. Rxe1 {[%clk 0:01:46]}  Qxb2 {[%clk 0:01:19]} 28. Ne7+ {[%clk 0:01:46]}  Kf8 {[%clk 0:01:16]} 29. Bxb7 {[%clk 0:01:47]}  Re8 {[%clk 0:01:16]} 30. Bc6 {[%clk 0:01:37]}  Rxe7 {[%clk 0:01:14]} 0-1


[Site "https://www.chess.com"]

[Event "Titled Tuesday Blitz June 28 Early 2022"]
[White "Rom, Jasper"]
[Black "Madaminov, Mukhiddin"]
[WhiteFideId "2023733"]
[BlackFideId "14210703"]
[WhiteElo "2233"]
[BlackElo "1916"]
[Result "0-1"]
[Round "01"]
[TimeControl "180+1"]
[Date "2022.06.28"]
[WhiteClock "0:00:02"]
[BlackClock "0:00:06"]

1. e4 {[%clk 0:02:59]}  e6 {[%clk 0:02:57]} 2. d4 {[%clk 0:02:59]}  d5 {[%clk 0:02:48]} 3. Bd3 {[%clk 0:02:59]}  dxe4 {[%clk 0:02:41]} 4. Bxe4 {[%clk 0:03:00]}  Nf6 {[%clk 0:02:41]} 5. Bf3 {[%clk 0:03:00]}  Bd6 {[%clk 0:02:36]} 6. Ne2 {[%clk 0:03:00]}  O-O {[%clk 0:02:36]} 7. O-O {[%clk 0:02:59]}  Nbd7 {[%clk 0:02:37]} 8. Nbc3 {[%clk 0:02:54]}  c6 {[%clk 0:02:35]} 9. Ng3 {[%clk 0:02:53]}  Bc7 {[%clk 0:02:24]} 10. Re1 {[%clk 0:02:49]}  a5 {[%clk 0:02:08]} 11. a4 {[%clk 0:02:48]}  Nd5 {[%clk 0:02:06]} 12. Nce4 {[%clk 0:02:42]}  e5 {[%clk 0:02:02]} 13. c4 {[%clk 0:02:34]}  Nb4 {[%clk 0:01:46]} 14. d5 {[%clk 0:02:27]}  cxd5 {[%clk 0:01:40]} 15. cxd5 {[%clk 0:02:26]}  Bb6 {[%clk 0:01:26]} 16. Nh5 {[%clk 0:01:48]}  h6 {[%clk 0:01:18]} 17. d6 {[%clk 0:01:03]}  Nc5 {[%clk 0:01:15]} 18. Nc3 {[%clk 0:00:57]}  Ncd3 {[%clk 0:01:13]} 19. Re2 {[%clk 0:00:52]}  Qxd6 {[%clk 0:01:12]} 20. Be3 {[%clk 0:00:51]}  Bf5 {[%clk 0:01:00]} 21. Ne4 {[%clk 0:00:46]}  Qd8 {[%clk 0:00:54]} 22. Rd2 {[%clk 0:00:35]}  Bxe3 {[%clk 0:00:53]} 23. fxe3 {[%clk 0:00:36]}  Rc8 {[%clk 0:00:44]} 24. Nhg3 {[%clk 0:00:36]}  Bg6 {[%clk 0:00:43]} 25. Be2 {[%clk 0:00:36]}  Bxe4 {[%clk 0:00:20]} 26. Nxe4 {[%clk 0:00:35]}  Qh4 {[%clk 0:00:21]} 27. Nd6 {[%clk 0:00:28]}  Qf2+ {[%clk 0:00:17]} 28. Kh1 {[%clk 0:00:26]}  Rcd8 {[%clk 0:00:06]} 29. Bxd3 {[%clk 0:00:25]}  Qxe3 {[%clk 0:00:07]} 30. Nc4 {[%clk 0:00:15]}  Qf4 {[%clk 0:00:08]} 31. Bh7+ {[%clk 0:00:14]}  Kxh7 {[%clk 0:00:07]} 32. Rxd8 {[%clk 0:00:14]}  Rxd8 {[%clk 0:00:07]} 33. Qxd8 {[%clk 0:00:15]}  Qxc4 {[%clk 0:00:08]} 34. Qd2 {[%clk 0:00:14]}  Nd3 {[%clk 0:00:07]} 35. Qc3 {[%clk 0:00:11]}  Qd5 {[%clk 0:00:05]} 36. Rf1 {[%clk 0:00:07]}  e4 {[%clk 0:00:06]} 37. Qd2 {[%clk 0:00:05]}  f5 {[%clk 0:00:05]} 38. Qe3 {[%clk 0:00:05]}  Kg6 {[%clk 0:00:05]} 39. Qg3+ {[%clk 0:00:05]}  Kh7 {[%clk 0:00:05]} 40. Qh3 {[%clk 0:00:05]}  f4 {[%clk 0:00:06]} 41. Qg4 {[%clk 0:00:04]}  e3 {[%clk 0:00:06]} 42. Qe2 {[%clk 0:00:02]}  Qe4 {[%clk 0:00:06]} 43. h3 {[%clk 0:00:01]}  Ne5 {[%clk 0:00:07]} 44. Kh2 {[%clk 0:00:02]}  Ng6 {[%clk 0:00:07]} 45. Qb5 {[%clk 0:00:01]}  Nh4 {[%clk 0:00:07]} 46. Qh5 {[%clk 0:00:02]}  Qxg2# {[%clk 0:00:06]} 0-1


[Site "https://www.chess.com"]

[Event "Titled Tuesday Blitz June 28 Early 2022"]
[White "Sadykov, Ramil"]
[Black "Moussard, Jules"]
[WhiteFideId "24113590"]
[BlackFideId "642908"]
[WhiteElo "2226"]
[BlackElo "2589"]
[Result "0-1"]
[Round "01"]
[TimeControl "180+1"]
[Date "2022.06.28"]
[WhiteClock "0:00:02"]
[BlackClock "0:00:50"]

1. e4 {[%clk 0:02:53]}  c6 {[%clk 0:02:58]} 2. d4 {[%clk 0:02:50]}  d5 {[%clk 0:02:58]} 3. exd5 {[%clk 0:02:51]}  cxd5 {[%clk 0:02:59]} 4. Bd3 {[%clk 0:02:50]}  Nc6 {[%clk 0:02:58]} 5. c3 {[%clk 0:02:49]}  Nf6 {[%clk 0:02:59]} 6. Bf4 {[%clk 0:02:48]}  Bg4 {[%clk 0:02:46]} 7. Qb3 {[%clk 0:02:48]}  Na5 {[%clk 0:02:46]} 8. Qa4+ {[%clk 0:02:38]}  Bd7 {[%clk 0:02:46]} 9. Qc2 {[%clk 0:02:33]}  e6 {[%clk 0:02:42]} 10. Nf3 {[%clk 0:02:31]}  Be7 {[%clk 0:02:38]} 11. Ne5 {[%clk 0:02:28]}  Nc6 {[%clk 0:02:37]} 12. Nd2 {[%clk 0:02:25]}  Rc8 {[%clk 0:02:36]} 13. Qd1 {[%clk 0:02:18]}  Qb6 {[%clk 0:02:32]} 14. Rb1 {[%clk 0:02:15]}  Nxe5 {[%clk 0:02:25]} 15. dxe5 {[%clk 0:02:09]}  Ng8 {[%clk 0:02:23]} 16. Qe2 {[%clk 0:02:00]}  a6 {[%clk 0:02:18]} 17. O-O {[%clk 0:01:58]}  h6 {[%clk 0:02:09]} 18. Be3 {[%clk 0:01:49]}  Qc7 {[%clk 0:02:07]} 19. f4 {[%clk 0:01:48]}  Bc5 {[%clk 0:02:07]} 20. Nb3 {[%clk 0:01:38]}  Bxe3+ {[%clk 0:02:06]} 21. Qxe3 {[%clk 0:01:39]}  Ne7 {[%clk 0:02:06]} 22. Qg3 {[%clk 0:01:37]}  g6 {[%clk 0:02:06]} 23. Nd4 {[%clk 0:01:36]}  Nc6 {[%clk 0:01:58]} 24. Nf3 {[%clk 0:01:26]}  Na5 {[%clk 0:01:49]} 25. Bxg6 {[%clk 0:01:04]}  Rg8 {[%clk 0:01:43]} 26. Bxf7+ {[%clk 0:01:05]}  Kxf7 {[%clk 0:01:44]} 27. Qh4 {[%clk 0:01:05]}  Rg6 {[%clk 0:01:37]} 28. Nd4 {[%clk 0:00:48]}  Rcg8 {[%clk 0:01:34]} 29. Qh5 {[%clk 0:00:45]}  Ke7 {[%clk 0:01:33]} 30. Rf2 {[%clk 0:00:44]}  Nc6 {[%clk 0:01:30]} 31. f5 {[%clk 0:00:31]}  exf5 {[%clk 0:01:26]} 32. Nxf5+ {[%clk 0:00:31]}  Bxf5 {[%clk 0:01:26]} 33. Qxf5 {[%clk 0:00:31]}  Qxe5 {[%clk 0:01:23]} 34. Qf7+ {[%clk 0:00:27]}  Kd6 {[%clk 0:01:22]} 35. Rd1 {[%clk 0:00:22]}  Rxg2+ {[%clk 0:01:21]} 36. Rxg2 {[%clk 0:00:16]}  Rxg2+ {[%clk 0:01:22]} 37. Kxg2 {[%clk 0:00:15]}  Qe2+ {[%clk 0:01:22]} 38. Qf2 {[%clk 0:00:07]}  Qxd1 {[%clk 0:01:22]} 39. Qf8+ {[%clk 0:00:08]}  Kc7 {[%clk 0:01:22]} 40. Qxh6 {[%clk 0:00:02]}  Qc2+ {[%clk 0:01:20]} 41. Kg3 {[%clk 0:00:03]}  Qxb2 {[%clk 0:01:19]} 42. Qf4+ {[%clk 0:00:03]}  Kb6 {[%clk 0:01:18]} 43. Qe3+ {[%clk 0:00:03]}  d4 {[%clk 0:01:15]} 44. cxd4 {[%clk 0:00:04]}  Qxd4 {[%clk 0:01:14]} 45. Qb3+ {[%clk 0:00:04]}  Kc7 {[%clk 0:01:13]} 46. h4 {[%clk 0:00:05]}  Ne5 {[%clk 0:01:11]} 47. Qc2+ {[%clk 0:00:04]}  Kd6 {[%clk 0:01:11]} 48. Qe2 {[%clk 0:00:03]}  Qg1+ {[%clk 0:01:09]} 49. Kh3 {[%clk 0:00:02]}  Qh1+ {[%clk 0:01:07]} 50. Kg3 {[%clk 0:00:03]}  b5 {[%clk 0:01:03]} 51. Qd2+ {[%clk 0:00:02]}  Ke6 {[%clk 0:01:02]} 52. Qh6+ {[%clk 0:00:02]}  Kd5 {[%clk 0:01:02]} 53. Qd2+ {[%clk 0:00:02]}  Ke4 {[%clk 0:00:57]} 54. Qe2+ {[%clk 0:00:02]}  Kd4 {[%clk 0:00:57]} 55. Qb2+ {[%clk 0:00:02]}  Ke4 {[%clk 0:00:54]} 56. Qe2+ {[%clk 0:00:02]}  Kf5 {[%clk 0:00:54]} 57. Qf2+ {[%clk 0:00:02]}  Kg6 {[%clk 0:00:53]} 58. Qc2+ {[%clk 0:00:02]}  Kf6 {[%clk 0:00:50]} 0-1


[Site "https://www.chess.com"]

[Event "Titled Tuesday Blitz June 28 Early 2022"]
[White "Samsonkin, Artiom"]
[Black "Mendez Fortes, Eduardo Jesus"]
[WhiteFideId "13503111"]
[BlackFideId "3502376"]
[WhiteElo "2513"]
[BlackElo "2321"]
[Result "0-1"]
[Round "01"]
[TimeControl "180+1"]
[Date "2022.06.28"]
[WhiteClock "0:00:04"]
[BlackClock "0:01:13"]

1. d4 {[%clk 0:02:57]}  Nf6 {[%clk 0:02:59]} 2. Bf4 {[%clk 0:02:56]}  d5 {[%clk 0:02:59]} 3. e3 {[%clk 0:02:54]}  c5 {[%clk 0:03:00]} 4. c3 {[%clk 0:02:53]}  Nc6 {[%clk 0:03:00]} 5. Nf3 {[%clk 0:02:53]}  Qb6 {[%clk 0:02:58]} 6. Qc2 {[%clk 0:02:52]}  Bg4 {[%clk 0:02:53]} 7. Nbd2 {[%clk 0:02:32]}  e6 {[%clk 0:02:49]} 8. h3 {[%clk 0:02:00]}  Bf5 {[%clk 0:02:49]} 9. Bd3 {[%clk 0:01:51]}  Bxd3 {[%clk 0:02:47]} 10. Qxd3 {[%clk 0:01:52]}  c4 {[%clk 0:02:47]} 11. Qc2 {[%clk 0:01:51]}  Qa6 {[%clk 0:02:45]} 12. O-O {[%clk 0:01:44]}  b5 {[%clk 0:02:45]} 13. e4 {[%clk 0:01:44]}  Be7 {[%clk 0:02:44]} 14. Bg5 {[%clk 0:01:33]}  O-O {[%clk 0:02:15]} 15. Ne5 {[%clk 0:01:22]}  dxe4 {[%clk 0:02:04]} 16. Bxf6 {[%clk 0:01:14]}  gxf6 {[%clk 0:01:58]} 17. Nxc6 {[%clk 0:01:05]}  Qxc6 {[%clk 0:01:59]} 18. Qxe4 {[%clk 0:00:43]}  Qxe4 {[%clk 0:01:59]} 19. Nxe4 {[%clk 0:00:44]}  f5 {[%clk 0:01:59]} 20. Nd2 {[%clk 0:00:39]}  Bd6 {[%clk 0:01:58]} 21. g4 {[%clk 0:00:31]}  fxg4 {[%clk 0:01:57]} 22. Ne4 {[%clk 0:00:31]}  Be7 {[%clk 0:01:53]} 23. hxg4 {[%clk 0:00:32]}  f5 {[%clk 0:01:51]} 24. gxf5 {[%clk 0:00:32]}  exf5 {[%clk 0:01:52]} 25. Nd2 {[%clk 0:00:31]}  Bd6 {[%clk 0:01:51]} 26. Rfe1 {[%clk 0:00:30]}  Rf6 {[%clk 0:01:50]} 27. Kf1 {[%clk 0:00:28]}  f4 {[%clk 0:01:49]} 28. a4 {[%clk 0:00:28]}  f3 {[%clk 0:01:49]} 29. axb5 {[%clk 0:00:25]}  Raf8 {[%clk 0:01:48]} 30. Nxc4 {[%clk 0:00:15]}  Rh6 {[%clk 0:01:42]} 31. Kg1 {[%clk 0:00:14]}  Rff6 {[%clk 0:01:37]} 32. Re8+ {[%clk 0:00:05]}  Kg7 {[%clk 0:01:34]} 33. Rxa7+ {[%clk 0:00:04]}  Rf7 {[%clk 0:01:28]} 34. Rxf7+ {[%clk 0:00:03]}  Kxf7 {[%clk 0:01:29]} 35. Nxd6+ {[%clk 0:00:04]}  Rxd6 {[%clk 0:01:29]} 36. Re3 {[%clk 0:00:04]}  Rf6 {[%clk 0:01:28]} 37. b6 {[%clk 0:00:03]}  Rxb6 {[%clk 0:01:27]} 38. Rxf3+ {[%clk 0:00:04]}  Kg6 {[%clk 0:01:28]} 39. b4 {[%clk 0:00:04]}  Rc6 {[%clk 0:01:28]} 40. d5 {[%clk 0:00:04]}  Rc4 {[%clk 0:01:29]} 41. Rd3 {[%clk 0:00:05]}  Kf7 {[%clk 0:01:28]} 42. d6 {[%clk 0:00:05]}  Ke8 {[%clk 0:01:28]} 43. Kf1 {[%clk 0:00:06]}  Kd7 {[%clk 0:01:28]} 44. Ke2 {[%clk 0:00:07]}  h5 {[%clk 0:01:29]} 45. Kd2 {[%clk 0:00:05]}  h4 {[%clk 0:01:29]} 46. Rh3 {[%clk 0:00:05]}  Rf4 {[%clk 0:01:29]} 47. Kd3 {[%clk 0:00:05]}  Kxd6 {[%clk 0:01:28]} 48. Ke3 {[%clk 0:00:04]}  Rc4 {[%clk 0:01:28]} 49. Kd3 {[%clk 0:00:05]}  Rf4 {[%clk 0:01:28]} 50. c4 {[%clk 0:00:06]}  Ke5 {[%clk 0:01:24]} 51. Re3+ {[%clk 0:00:05]}  Kd6 {[%clk 0:01:22]} 52. Re8 {[%clk 0:00:05]}  Rxf2 {[%clk 0:01:20]} 53. Rh8 {[%clk 0:00:05]}  Rf4 {[%clk 0:01:19]} 54. Rh6+ {[%clk 0:00:04]}  Kc7 {[%clk 0:01:19]} 55. b5 {[%clk 0:00:04]}  Rg4 {[%clk 0:01:14]} 56. Kc3 {[%clk 0:00:04]}  Rg3+ {[%clk 0:01:15]} 57. Kb4 {[%clk 0:00:05]}  h3 {[%clk 0:01:15]} 58. Rh7+ {[%clk 0:00:05]}  Kd6 {[%clk 0:01:15]} 59. Rh6+ {[%clk 0:00:05]}  Kc7 {[%clk 0:01:15]} 60. b6+ {[%clk 0:00:04]}  Kb7 {[%clk 0:01:15]} 61. Kb5 {[%clk 0:00:04]}  Rb3+ {[%clk 0:01:13]} 62. Kc5 {[%clk 0:00:04]}  Ka6 {[%clk 0:01:13]} 0-1


[Site "https://www.chess.com"]

[Event "Titled Tuesday Blitz June 28 Early 2022"]
[White "Sarkar, Justin"]
[Black "Dankhazi, Andras"]
[WhiteFideId "2010011"]
[BlackFideId "714267"]
[WhiteElo "2020"]
[BlackElo "2325"]
[Result "0-1"]
[Round "01"]
[TimeControl "180+1"]
[Date "2022.06.28"]
[WhiteClock "0:00:01"]
[BlackClock "0:00:33"]

1. d4 {[%clk 0:02:50]}  g6 {[%clk 0:02:56]} 2. c4 {[%clk 0:02:44]}  Bg7 {[%clk 0:02:55]} 3. e4 {[%clk 0:02:39]}  e6 {[%clk 0:02:52]} 4. Nc3 {[%clk 0:02:33]}  Ne7 {[%clk 0:02:51]} 5. Nf3 {[%clk 0:02:21]}  d5 {[%clk 0:02:50]} 6. e5 {[%clk 0:02:10]}  O-O {[%clk 0:02:43]} 7. Be3 {[%clk 0:02:00]}  b6 {[%clk 0:02:33]} 8. cxd5 {[%clk 0:01:48]}  Nxd5 {[%clk 0:02:32]} 9. Nxd5 {[%clk 0:01:44]}  Qxd5 {[%clk 0:02:33]} 10. Be2 {[%clk 0:01:38]}  Nd7 {[%clk 0:02:30]} 11. O-O {[%clk 0:01:35]}  Bb7 {[%clk 0:02:22]} 12. Rc1 {[%clk 0:01:28]}  c5 {[%clk 0:02:21]} 13. dxc5 {[%clk 0:01:03]}  Nxe5 {[%clk 0:02:14]} 14. Qxd5 {[%clk 0:00:57]}  Bxd5 {[%clk 0:02:13]} 15. Nxe5 {[%clk 0:00:50]}  Bxe5 {[%clk 0:02:14]} 16. cxb6 {[%clk 0:00:49]}  axb6 {[%clk 0:02:15]} 17. Bxb6 {[%clk 0:00:27]}  Rxa2 {[%clk 0:02:14]} 18. Bc4 {[%clk 0:00:20]}  Bxc4 {[%clk 0:02:11]} 19. Rxc4 {[%clk 0:00:21]}  Rxb2 {[%clk 0:02:10]} 20. Bd4 {[%clk 0:00:19]}  Bxd4 {[%clk 0:02:10]} 21. Rxd4 {[%clk 0:00:20]}  Rc8 {[%clk 0:02:09]} 22. h4 {[%clk 0:00:19]}  Kg7 {[%clk 0:02:06]} 23. g3 {[%clk 0:00:15]}  Rcc2 {[%clk 0:02:06]} 24. Re4 {[%clk 0:00:10]}  Kf6 {[%clk 0:02:05]} 25. Rf4+ {[%clk 0:00:10]}  Kg7 {[%clk 0:02:05]} 26. Re4 {[%clk 0:00:09]}  Rd2 {[%clk 0:02:03]} 27. Re3 {[%clk 0:00:09]}  h6 {[%clk 0:01:58]} 28. Re4 {[%clk 0:00:08]}  Kf6 {[%clk 0:01:58]} 29. Rf4+ {[%clk 0:00:08]}  Kg7 {[%clk 0:01:59]} 30. Re4 {[%clk 0:00:09]}  g5 {[%clk 0:01:59]} 31. hxg5 {[%clk 0:00:08]}  hxg5 {[%clk 0:02:00]} 32. Re3 {[%clk 0:00:07]}  Kg6 {[%clk 0:02:00]} 33. Re4 {[%clk 0:00:07]}  Kf6 {[%clk 0:01:58]} 34. Re3 {[%clk 0:00:06]}  Kf5 {[%clk 0:01:59]} 35. Rf3+ {[%clk 0:00:07]}  Kg6 {[%clk 0:01:59]} 36. Re3 {[%clk 0:00:06]}  Kf6 {[%clk 0:02:00]} 37. Kg2 {[%clk 0:00:06]}  Ke7 {[%clk 0:01:57]} 38. Re4 {[%clk 0:00:05]}  f5 {[%clk 0:01:54]} 39. Re3 {[%clk 0:00:06]}  Kf6 {[%clk 0:01:55]} 40. Rf3 {[%clk 0:00:05]}  g4 {[%clk 0:01:52]} 41. Rc3 {[%clk 0:00:04]}  Kg5 {[%clk 0:01:27]} 42. Rc4 {[%clk 0:00:04]}  e5 {[%clk 0:01:27]} 43. Rc5 {[%clk 0:00:04]}  Kf6 {[%clk 0:01:26]} 44. Rc6+ {[%clk 0:00:04]}  Ke7 {[%clk 0:01:26]} 45. Rc5 {[%clk 0:00:04]}  Kd6 {[%clk 0:01:22]} 46. Ra5 {[%clk 0:00:04]}  f4 {[%clk 0:01:17]} 47. gxf4 {[%clk 0:00:04]}  exf4 {[%clk 0:01:17]} 48. Rf5 {[%clk 0:00:03]}  Rb4 {[%clk 0:01:07]} 49. Rf8 {[%clk 0:00:03]}  Ke7 {[%clk 0:01:01]} 50. Rf5 {[%clk 0:00:03]}  Ke6 {[%clk 0:01:01]} 51. Rf8 {[%clk 0:00:03]}  Re4 {[%clk 0:00:41]} 52. Re8+ {[%clk 0:00:02]}  Kf5 {[%clk 0:00:40]} 53. Rxe4 {[%clk 0:00:02]}  Kxe4 {[%clk 0:00:41]} 54. Re1+ {[%clk 0:00:02]}  Kf5 {[%clk 0:00:41]} 55. Kg1 {[%clk 0:00:02]}  Ra2 {[%clk 0:00:37]} 56. Re8 {[%clk 0:00:02]}  Rb2 {[%clk 0:00:36]} 57. Rf8+ {[%clk 0:00:02]}  Ke4 {[%clk 0:00:36]} 58. Kf1 {[%clk 0:00:02]}  Kf3 {[%clk 0:00:35]} 59. Ke1 {[%clk 0:00:01]}  Re2+ {[%clk 0:00:33]} 0-1


[Site "https://www.chess.com"]

[Event "Titled Tuesday Blitz June 28 Early 2022"]
[White "Sevian, Samuel"]
[Black "Dobre, Claudiu-Cristian"]
[WhiteFideId "2040506"]
[BlackFideId "1211854"]
[WhiteElo "2692"]
[BlackElo "2207"]
[Result "1-0"]
[Round "01"]
[TimeControl "180+1"]
[Date "2022.06.28"]
[WhiteClock "0:00:07"]
[BlackClock "0:00:04"]

1. d4 {[%clk 0:02:37]}  d5 {[%clk 0:02:58]} 2. c4 {[%clk 0:02:36]}  c6 {[%clk 0:02:58]} 3. Nc3 {[%clk 0:02:36]}  Nf6 {[%clk 0:02:57]} 4. e3 {[%clk 0:02:36]}  e6 {[%clk 0:02:55]} 5. Qc2 {[%clk 0:02:35]}  Nbd7 {[%clk 0:02:53]} 6. f4 {[%clk 0:02:36]}  a6 {[%clk 0:01:47]} 7. Nf3 {[%clk 0:02:35]}  Be7 {[%clk 0:01:43]} 8. b3 {[%clk 0:02:35]}  c5 {[%clk 0:01:35]} 9. Bd3 {[%clk 0:02:35]}  b6 {[%clk 0:01:29]} 10. O-O {[%clk 0:02:34]}  Bb7 {[%clk 0:01:29]} 11. Bb2 {[%clk 0:02:35]}  Rc8 {[%clk 0:01:27]} 12. Rad1 {[%clk 0:02:34]}  Qc7 {[%clk 0:01:26]} 13. Ne5 {[%clk 0:02:29]}  O-O {[%clk 0:01:18]} 14. h3 {[%clk 0:02:23]}  h6 {[%clk 0:01:10]} 15. Qf2 {[%clk 0:02:23]}  cxd4 {[%clk 0:01:03]} 16. exd4 {[%clk 0:02:23]}  Ne4 {[%clk 0:01:04]} 17. Bxe4 {[%clk 0:02:15]}  dxe4 {[%clk 0:01:04]} 18. Rfe1 {[%clk 0:02:16]}  Nf6 {[%clk 0:01:00]} 19. Ng4 {[%clk 0:02:14]}  Nxg4 {[%clk 0:00:58]} 20. hxg4 {[%clk 0:02:14]}  f5 {[%clk 0:00:59]} 21. d5 {[%clk 0:02:14]}  Bc5 {[%clk 0:00:54]} 22. Re3 {[%clk 0:02:14]}  fxg4 {[%clk 0:00:50]} 23. Ne2 {[%clk 0:02:08]}  Bxe3 {[%clk 0:00:40]} 24. Qxe3 {[%clk 0:02:08]}  exd5 {[%clk 0:00:40]} 25. Be5 {[%clk 0:02:02]}  Qc5 {[%clk 0:00:39]} 26. Bd4 {[%clk 0:02:02]}  Qc6 {[%clk 0:00:39]} 27. Ng3 {[%clk 0:02:01]}  dxc4 {[%clk 0:00:35]} 28. Nh5 {[%clk 0:02:02]}  Rf7 {[%clk 0:00:33]} 29. f5 {[%clk 0:02:02]}  cxb3 {[%clk 0:00:31]} 30. f6 {[%clk 0:02:00]}  g5 {[%clk 0:00:28]} 31. Ng3 {[%clk 0:01:03]}  Qe6 {[%clk 0:00:19]} 32. axb3 {[%clk 0:01:02]}  Rd8 {[%clk 0:00:18]} 33. Rf1 {[%clk 0:01:02]}  b5 {[%clk 0:00:16]} 34. Nf5 {[%clk 0:01:01]}  Kh7 {[%clk 0:00:16]} 35. Ne7 {[%clk 0:00:49]}  Rd7 {[%clk 0:00:16]} 36. Nf5 {[%clk 0:00:24]}  Qd5 {[%clk 0:00:16]} 37. Kh2 {[%clk 0:00:19]}  a5 {[%clk 0:00:16]} 38. Ba1 {[%clk 0:00:13]}  a4 {[%clk 0:00:15]} 39. bxa4 {[%clk 0:00:13]}  bxa4 {[%clk 0:00:16]} 40. Ng3 {[%clk 0:00:12]}  Qd6 {[%clk 0:00:16]} 41. Rf5 {[%clk 0:00:11]}  Bc6 {[%clk 0:00:15]} 42. Be5 {[%clk 0:00:11]}  Qe6 {[%clk 0:00:15]} 43. Rxg5 {[%clk 0:00:07]}  Rd2 {[%clk 0:00:15]} 44. Qxd2 {[%clk 0:00:07]}  hxg5 {[%clk 0:00:14]} 45. Qxg5 {[%clk 0:00:07]}  Rb7 {[%clk 0:00:13]} 46. Qh5+ {[%clk 0:00:07]}  Kg8 {[%clk 0:00:13]} 47. Qg6+ {[%clk 0:00:07]}  Kf8 {[%clk 0:00:13]} 48. Bf4 {[%clk 0:00:08]}  Qf7 {[%clk 0:00:13]} 49. Qf5 {[%clk 0:00:07]}  Bd7 {[%clk 0:00:11]} 50. Bh6+ {[%clk 0:00:06]}  Ke8 {[%clk 0:00:11]} 51. Qxe4+ {[%clk 0:00:06]}  Be6 {[%clk 0:00:10]} 52. Nf5 {[%clk 0:00:07]}  Qc7+ {[%clk 0:00:08]} 53. Bf4 {[%clk 0:00:06]}  Kf7 {[%clk 0:00:09]} 54. Bxc7 {[%clk 0:00:06]}  Rxc7 {[%clk 0:00:05]} 55. Nd4 {[%clk 0:00:06]}  Bd7 {[%clk 0:00:05]} 56. Qe7+ {[%clk 0:00:06]}  Kg6 {[%clk 0:00:05]} 57. f7 {[%clk 0:00:07]}  g3+ {[%clk 0:00:04]} 58. Kxg3 {[%clk 0:00:07]}  Rc3+ {[%clk 0:00:05]} 59. Kf4 {[%clk 0:00:07]}  Rc1 {[%clk 0:00:04]} 60. f8=Q {[%clk 0:00:06]}  Rf1+ {[%clk 0:00:04]} 61. Nf3 {[%clk 0:00:07]} 1-0


[Site "https://www.chess.com"]

[Event "Titled Tuesday Blitz June 28 Early 2022"]
[White "Shohat, Yotam"]
[Black "Gardezi, Arsal"]
[WhiteFideId "2813955"]
[BlackFideId "30949521"]
[WhiteElo "2119"]
[BlackElo "1781"]
[Result "0-1"]
[Round "01"]
[TimeControl "180+1"]
[Date "2022.06.28"]
[WhiteClock "0:00:01"]
[BlackClock "0:00:11"]

1. e4 {[%clk 0:02:58]}  e6 {[%clk 0:02:59]} 2. d4 {[%clk 0:02:57]}  d5 {[%clk 0:02:59]} 3. Nc3 {[%clk 0:02:56]}  Be7 {[%clk 0:02:59]} 4. Nf3 {[%clk 0:02:38]}  Nf6 {[%clk 0:02:37]} 5. e5 {[%clk 0:02:36]}  Nfd7 {[%clk 0:02:38]} 6. Ne2 {[%clk 0:02:36]}  c5 {[%clk 0:02:34]} 7. c3 {[%clk 0:02:35]}  b6 {[%clk 0:02:34]} 8. Nf4 {[%clk 0:02:29]}  Ba6 {[%clk 0:02:29]} 9. Bxa6 {[%clk 0:02:21]}  Nxa6 {[%clk 0:02:29]} 10. h4 {[%clk 0:01:37]}  cxd4 {[%clk 0:01:42]} 11. cxd4 {[%clk 0:01:30]}  Rc8 {[%clk 0:01:40]} 12. a3 {[%clk 0:01:20]}  b5 {[%clk 0:01:32]} 13. Ng5 {[%clk 0:00:39]}  g6 {[%clk 0:00:40]} 14. Qf3 {[%clk 0:00:17]}  Bxg5 {[%clk 0:00:20]} 15. hxg5 {[%clk 0:00:16]}  Qe7 {[%clk 0:00:20]} 16. Be3 {[%clk 0:00:13]}  b4 {[%clk 0:00:20]} 17. a4 {[%clk 0:00:12]}  b3 {[%clk 0:00:19]} 18. O-O {[%clk 0:00:10]}  Nb4 {[%clk 0:00:19]} 19. Rac1 {[%clk 0:00:10]}  Nc2 {[%clk 0:00:19]} 20. Ne2 {[%clk 0:00:06]}  O-O {[%clk 0:00:19]} 21. Bf4 {[%clk 0:00:04]}  Nb6 {[%clk 0:00:18]} 22. Qxb3 {[%clk 0:00:04]}  Nb4 {[%clk 0:00:15]} 23. Bd2 {[%clk 0:00:03]}  Na6 {[%clk 0:00:15]} 24. a5 {[%clk 0:00:03]}  Nc4 {[%clk 0:00:15]} 25. Bc3 {[%clk 0:00:03]}  Rb8 {[%clk 0:00:15]} 26. Qc2 {[%clk 0:00:03]}  Nb4 {[%clk 0:00:15]} 27. Bxb4 {[%clk 0:00:03]}  Rxb4 {[%clk 0:00:15]} 28. b3 {[%clk 0:00:04]}  Nxa5 {[%clk 0:00:16]} 29. Qc3 {[%clk 0:00:03]}  Nxb3 {[%clk 0:00:15]} 30. Rb1 {[%clk 0:00:03]}  Rfb8 {[%clk 0:00:14]} 31. Qh3 {[%clk 0:00:02]}  R4b7 {[%clk 0:00:12]} 32. f4 {[%clk 0:00:01]}  Nd2 {[%clk 0:00:11]} 0-1


[Site "https://www.chess.com"]